bitfinex/quotes_BTCUSD_20250513
["timestamp","ask_amount","ask_price","bid_price","bid_amount"]
[1747138365529,0.04163416,103530.0,103520.0,1.02156558]
[1747138365785,0.02231657,103530.0,103520.0,1.17759513]
[1747138366014,0.03197513,103530.0,103520.0,1.17759513]
[1747138366251,0.01265819,103530.0,103520.0,1.17759513]
[1747138366470,0.02231657,103530.0,103520.0,1.17759513]
[1747138366703,0.003,103530.0,103520.0,1.27490453]
[1747138366927,0.003,103530.0,103520.0,1.71221393]
[1747138367840,0.003,103530.0,103520.0,2.70051393]
[1747138368174,0.003,103530.0,103520.0,2.63197693]
[1747138368398,0.01931294,103550.0,103540.0,0.27623524]
[1747138368618,0.01931294,103550.0,103540.0,0.57071484]
[1747138368828,0.2221135,103550.0,103540.0,0.78904294]
[1747138369552,0.2221135,103550.0,103540.0,0.7920619]
[1747138369748,0.2241135,103550.0,103540.0,0.79311046]
[1747138369959,0.2241135,103550.0,103540.0,1.19311046]
[1747138370182,0.0309701,103550.0,103540.0,1.19311046]
[1747138370396,0.23377067,103550.0,103540.0,1.20276809]
[1747138370610,0.0309701,103550.0,103540.0,1.21242554]
[1747138370836,0.02131312,103550.0,103540.0,1.21242554]
[1747138371052,0.23377048,103550.0,103540.0,1.21242563]
[1747138371290,0.24342765,103550.0,103540.0,1.21242563]
[1747138371745,0.05028425,103550.0,103540.0,1.22208308]
[1747138372476,0.23377048,103550.0,103540.0,1.15389649]
[1747138372716,0.23377048,103550.0,103540.0,1.14423886]
[1747138374054,0.22411406,103550.0,103540.0,1.1538964]
[1747138374287,0.22411406,103550.0,103540.0,1.14423886]
[1747138374653,0.21445736,103550.0,103540.0,1.13458113]
[1747138375558,0.20480047,103550.0,103540.0,0.71164107]
[1747138375796,0.1951434,103550.0,103540.0,0.92932107]
[1747138376677,0.1951434,103550.0,103540.0,0.65754107]
[1747138378530,0.1951434,103550.0,103540.0,0.41193307]
[1747138378776,0.1951434,103550.0,103540.0,0.65754107]
[1747138379235,0.1951434,103550.0,103540.0,0.71455107]
[1747138379469,0.1951434,103550.0,103540.0,0.31455107]
[1747138379678,0.1951434,103550.0,103540.0,0.41074487]
[1747138380126,0.1951434,103550.0,103540.0,0.31455107]
[1747138380559,0.1951434,103550.0,103540.0,0.50771313]
[1747138380789,0.002,103550.0,103540.0,0.53668622]
[1747138381064,0.0309701,103550.0,103540.0,0.53668622]
[1747138381289,0.04062717,103550.0,103540.0,0.53668622]
[1747138381505,0.02131312,103550.0,103540.0,0.53668622]
[1747138381728,0.01165642,103550.0,103540.0,0.63097666]
[1747138381946,0.04062661,103550.0,103540.0,1.03097666]
[1747138382162,0.03096972,103550.0,103540.0,1.03097666]
[1747138382366,0.0406267,103550.0,103540.0,1.03097666]
[1747138382572,0.02131293,103550.0,103540.0,1.03097666]
[1747138382783,0.04062661,103550.0,103540.0,1.03097666]
[1747138383006,0.04062652,103550.0,103540.0,1.03097666]
[1747138383215,0.05028359,103550.0,103540.0,1.03097666]
[1747138383882,0.05028359,103550.0,103540.0,0.93366726]
[1747138384105,0.0502835,103550.0,103540.0,0.93366726]
[1747138384337,0.24342755,103550.0,103540.0,0.68805926]
[1747138384585,0.24342755,103550.0,103540.0,0.93366726]
[1747138385103,0.05028415,103550.0,103540.0,0.93366726]
[1747138386485,0.24342755,103550.0,103540.0,0.68805926]
[1747138386720,0.24342821,103550.0,103540.0,0.94332489]
[1747138387087,0.03097057,103550.0,103540.0,0.94634284]
[1747138387320,0.02131312,103550.0,103540.0,0.94634284]
[1747138387520,0.03097001,103550.0,103540.0,0.94634284]
[1747138387925,0.02131312,103550.0,103540.0,1.38210284]
[1747138388124,0.0309701,103550.0,103540.0,1.38210284]
[1747138389357,0.23377057,103550.0,103540.0,1.11717976]
[1747138389564,0.24342774,103550.0,103540.0,1.38210293]
[1747138389771,0.05028434,103550.0,103540.0,1.38210293]
[1747138390008,0.24342774,103550.0,103540.0,1.38210293]
[1747138390219,0.23377132,103550.0,103540.0,1.37244539]
[1747138390629,0.22411462,103550.0,103540.0,1.37244539]
[1747138390853,0.20480057,103550.0,103540.0,0.65845006]
[1747138391070,0.20480057,103550.0,103540.0,0.41284206]
[1747138391261,0.23080057,103550.0,103540.0,0.65845006]
[1747138391461,0.23080057,103550.0,103540.0,0.25845006]
[1747138392091,0.25690057,103550.0,103540.0,0.25845006]
[1747138392826,0.20480057,103550.0,103540.0,0.25845006]
[1747138393712,0.21156009,103550.0,103540.0,0.25845006]
[1747138395768,0.21156009,103550.0,103540.0,0.45161212]
[1747138395975,0.0280732,103550.0,103540.0,0.5352853]
[1747138396188,0.04738605,103550.0,103540.0,0.5352853]
[1747138396632,0.01165633,103550.0,103540.0,0.5352853]
[1747138396772,0.02131284,103550.0,103540.0,0.5352853]
[1747138396983,0.03096945,103550.0,103540.0,0.5352853]
[1747138397189,0.03096954,103550.0,103540.0,0.5352853]
[1747138397387,0.03096954,103550.0,103540.0,0.9352853]
[1747138397677,0.01165633,103550.0,103540.0,0.9352853]
[1747138397873,0.2317482,103560.0,103550.0,0.24035726]
[1747138398061,0.22209271,103560.0,103550.0,0.67458526]
[1747138398278,0.22209271,103560.0,103550.0,0.68217597]
[1747138398483,0.22209271,103560.0,103550.0,0.69183258]
[1747138398696,0.03574405,103560.0,103550.0,0.82669849]
[1747138398924,0.03574405,103560.0,103550.0,0.85399849]
[1747138399144,0.23852494,103560.0,103550.0,0.86957159]
[1747138399372,0.23852568,103560.0,103550.0,0.85991498]
[1747138399585,0.22886991,103560.0,103550.0,0.79505819]
[1747138399835,0.22986991,103560.0,103550.0,0.47245466]
[1747138400123,0.22986991,103560.0,103550.0,0.71806266]
[1747138400311,0.03674516,103560.0,103550.0,0.72771927]
[1747138400539,0.02708893,103560.0,103550.0,0.75481927]
[1747138400825,0.02808893,103560.0,103550.0,0.75581927]
[1747138401075,0.02808856,103560.0,103550.0,1.26278518]
[1747138401291,0.0377447,103560.0,103550.0,1.26278518]
[1747138401515,0.02808856,103560.0,103550.0,1.26278518]
[1747138401706,0.0377447,103560.0,103550.0,1.28968518]
[1747138402208,0.23086945,103560.0,103550.0,1.11906266]
[1747138402428,0.23086945,103560.0,103550.0,1.12871936]
[1747138402656,0.23086945,103560.0,103550.0,1.11906266]
[1747138402892,0.22121368,103560.0,103550.0,1.09974879]
[1747138403105,0.21155763,103560.0,103550.0,1.09974879]
[1747138403294,0.21155763,103560.0,103550.0,1.1168956]
[1747138403517,0.21155763,103560.0,103550.0,1.2075587]
[1747138404469,0.21155763,103560.0,103550.0,1.12655258]
[1747138405071,0.22121349,103560.0,103550.0,1.12655258]
[1747138405273,0.23086972,103560.0,103550.0,1.14586607]
[1747138405516,0.02808818,103560.0,103550.0,1.13620937]
[1747138405711,0.02808818,103560.0,103550.0,1.19846588]
[1747138405912,0.03774423,103560.0,103550.0,1.19846588]
[1747138406112,0.01843232,103560.0,103550.0,1.29577528]
[1747138406320,0.02808809,103560.0,103550.0,1.29577528]
[1747138406750,0.02131135,103560.0,103550.0,1.29577528]
[1747138406989,0.0309673,103560.0,103550.0,1.29577528]
[1747138407778,0.04062344,103560.0,103550.0,1.19846598]
[1747138408959,0.04062344,103560.0,103550.0,1.20812249]
[1747138409404,0.0309673,103560.0,103550.0,1.20812249]
[1747138409619,0.04062344,103560.0,103550.0,1.20812249]
[1747138410688,0.05027967,103560.0,103550.0,0.99250226]
[1747138410910,0.05027967,103560.0,103550.0,1.18564566]
[1747138411889,0.05027967,103560.0,103550.0,1.16980273]
[1747138412654,0.23374884,103560.0,103550.0,1.12338961]
[1747138412902,0.23374884,103560.0,103550.0,1.13304631]
[1747138413090,0.23374884,103560.0,103550.0,1.14270292]
[1747138413546,0.03096786,103560.0,103550.0,1.21939398]
[1747138413983,0.22409261,103560.0,103550.0,1.14270236]
[1747138415331,0.23374884,103560.0,103550.0,1.14270236]
[1747138415547,0.04062409,103560.0,103550.0,1.14270236]
[1747138415888,0.23374884,103560.0,103550.0,1.14270236]
[1747138416666,0.04062326,103560.0,103550.0,1.16940236]
[1747138417543,0.23374801,103560.0,103550.0,1.16940236]
[1747138417748,0.24340424,103560.0,103550.0,1.14270236]
[1747138420636,0.24340424,103560.0,103550.0,1.14361236]
[1747138420911,0.02131126,103560.0,103550.0,1.24092176]
[1747138421085,0.03096711,103560.0,103550.0,1.26692176]
[1747138421295,0.24340367,103560.0,103550.0,1.16961236]
[1747138421512,0.24340367,103560.0,103550.0,1.14361236]
[1747138422375,0.23374818,103560.0,103550.0,1.11464254]
[1747138422607,0.23374818,103560.0,103550.0,1.11164335]
[1747138422742,0.28834818,103560.0,103550.0,1.12130014]
[1747138423186,0.2786926,103560.0,103550.0,1.11164335]
[1747138423769,0.2786926,103560.0,103550.0,0.71164335]
[1747138424099,0.2786926,103560.0,103550.0,1.11164335]
[1747138425364,0.2786926,103560.0,103550.0,1.02757065]
[1747138426310,0.2510926,103560.0,103550.0,1.01791376]
[1747138426715,0.2778926,103560.0,103550.0,1.00825678]
[1747138426950,0.26823693,103560.0,103550.0,1.01791376]
[1747138427172,0.26823693,103560.0,103550.0,1.02757065]
[1747138428346,0.26823693,103560.0,103550.0,1.01791395]
[1747138428553,0.26823693,103560.0,103550.0,1.02757093]
[1747138429779,0.25858098,103560.0,103550.0,0.61141314]
[1747138429979,0.25858098,103560.0,103550.0,0.82125314]
[1747138430206,0.3364285,103560.0,103550.0,0.03504619]
[1747138430424,0.7737379,103560.0,103550.0,0.0209175]
[1747138430654,0.78051222,103560.0,103550.0,0.0209175]
[1747138430872,0.7026647,103560.0,103550.0,0.1824528]
[1747138431074,0.3626647,103560.0,103550.0,0.1824528]
[1747138431277,0.3626647,103560.0,103550.0,0.0209175]
[1747138431688,0.3626647,103560.0,103550.0,0.03695207]
[1747138432314,0.7026647,103560.0,103550.0,0.0209175]
[1747138432687,0.78051222,103560.0,103550.0,0.0209175]
[1747138433132,1.20543222,103560.0,103550.0,0.01789938]
[1747138433509,1.1275847,103560.0,103550.0,0.01789938]
[1747138434112,1.14297955,103560.0,103550.0,0.01789938]
[1747138435389,1.1275847,103560.0,103550.0,0.01789938]
[1747138436606,1.14212555,103560.0,103550.0,0.01789938]
[1747138438501,1.1275847,103560.0,103550.0,0.01789938]
[1747138438657,1.1263847,103560.0,103550.0,0.01789938]
[1747138439791,0.9178647,103560.0,103550.0,0.01789938]
[1747138443597,0.7026647,103560.0,103550.0,0.2640958]
[1747138444591,0.6488647,103560.0,103550.0,0.2640958]
[1747138444812,0.2115553,103560.0,103550.0,0.2640958]
[1747138445464,0.20478098,103560.0,103550.0,0.2640958]
[1747138446137,0.20478098,103560.0,103550.0,0.01789938]
[1747138446371,0.20478098,103560.0,103550.0,0.26602703]
[1747138446593,0.20478098,103560.0,103550.0,0.2640958]
[1747138448672,0.21443693,103560.0,103550.0,0.51979618]
[1747138449151,0.21443693,103560.0,103550.0,0.3169958]
[1747138449610,0.21443693,103560.0,103550.0,0.52945326]
[1747138449908,0.21443693,103560.0,103550.0,0.51979637]
[1747138450142,0.21443693,103560.0,103550.0,0.3169958]
[1747138450377,0.21443693,103560.0,103550.0,0.5101392]
[1747138450600,0.21443693,103560.0,103550.0,0.51979637]
[1747138450820,0.21443693,103560.0,103550.0,0.52945335]
[1747138451503,0.21443693,103560.0,103550.0,0.63641964]
[1747138451715,0.21443693,103560.0,103550.0,0.53911024]
[1747138452345,0.2240926,103560.0,103550.0,0.54876694]
[1747138452556,0.02131097,103560.0,103550.0,0.55842289]
[1747138452764,0.03096674,103560.0,103550.0,0.55842289]
[1747138452979,0.04062279,103560.0,103550.0,0.97446289]
[1747138453187,0.03096674,103560.0,103550.0,1.07177229]
[1747138454870,0.03096674,103560.0,103550.0,1.08645951]
[1747138455537,0.0406226,103560.0,103550.0,1.08645951]
[1747138455750,0.0406226,103560.0,103550.0,1.38915011]
[1747138456948,0.03096674,103560.0,103550.0,1.38915011]
[1747138457310,0.04062269,103560.0,103550.0,1.38915011]
[1747138458366,0.04062269,103560.0,103550.0,1.12520733]
[1747138458577,0.04062269,103560.0,103550.0,1.33080243]
[1747138458783,0.05027874,103560.0,103550.0,1.33080243]
[1747138459372,0.05027874,103560.0,103550.0,1.40763373]
[1747138459727,0.05027874,103560.0,103550.0,1.42718665]
[1747138460820,0.03096674,103560.0,103550.0,1.42718665]
[1747138461062,0.04062279,103560.0,103550.0,1.42718665]
[1747138461296,0.04062279,103560.0,103550.0,1.48038665]
[1747138461532,0.24340368,103560.0,103550.0,1.46083373]
[1747138462240,0.24340452,103560.0,103550.0,1.46083373]
[1747138463610,0.24340452,103560.0,103550.0,1.43463373]
[1747138464670,0.24340452,103560.0,103550.0,1.11160601]
[1747138464946,0.24340452,103560.0,103550.0,1.43463373]
[1747138466331,0.23374894,103560.0,103550.0,1.41532061]
[1747138466540,0.22409317,103560.0,103550.0,1.38832061]
[1747138466947,0.21443712,103560.0,103550.0,1.36900702]
[1747138467141,0.25838098,103560.0,103550.0,1.20537335]
[1747138467366,0.25838098,103560.0,103550.0,1.37654419]
[1747138468448,0.24872475,103560.0,103550.0,1.37654419]
[1747138468649,0.24872475,103560.0,103550.0,1.36688721]
[1747138469348,0.24872475,103560.0,103550.0,0.39765278]
[1747138469791,0.19512475,103560.0,103550.0,0.39289278]
[1747138469999,0.19512475,103560.0,103550.0,0.55440664]
[1747138470213,0.24822475,103560.0,103550.0,0.55440664]
[1747138470427,0.24822475,103560.0,103550.0,0.39289278]
[1747138471566,0.24822475,103560.0,103550.0,0.18865278]
[1747138472029,0.24822475,103560.0,103550.0,0.38179618]
[1747138472243,0.24822475,103560.0,103550.0,0.55296721]
[1747138472428,0.24822475,103560.0,103550.0,0.39145335]
[1747138473913,0.24822475,103560.0,103550.0,0.18865278]
[1747138474980,0.24822475,103560.0,103550.0,0.58865278]
[1747138475949,0.25499671,103560.0,103550.0,0.58865278]
[1747138476418,0.25499671,103560.0,103550.0,0.79145335]
[1747138476848,0.25499671,103560.0,103550.0,0.79145325]
[1747138477283,0.25499671,103560.0,103550.0,0.95296711]
[1747138477284,0.01842819,103560.0,103550.0,0.95296711]
[1747138477508,0.22120889,103560.0,103550.0,1.0599333]
[1747138477736,0.22120889,103560.0,103550.0,0.95296711]
[1747138477920,0.24710889,103560.0,103550.0,0.80111014]
[1747138478553,0.24710889,103560.0,103550.0,0.79145325]
[1747138478768,0.27330889,103560.0,103550.0,0.79145325]
[1747138481252,0.27330889,103560.0,103550.0,0.02713892]
[1747138481497,0.27330889,103560.0,103550.0,0.18865278]
[1747138487002,0.27330889,103560.0,103550.0,0.02713892]
[1747138487226,0.27330889,103560.0,103550.0,0.18865278]
[1747138488530,0.27330889,103560.0,103550.0,0.02713892]
[1747138488724,0.35115641,103560.0,103550.0,0.02713892]
[1747138488932,0.35115641,103560.0,103550.0,0.03015704]
[1747138489883,0.35115641,103560.0,103550.0,0.1916709]
[1747138489884,0.27330889,103560.0,103550.0,0.1916709]
[1747138499365,0.22120889,103560.0,103550.0,0.3551161]
[1747138499584,0.22120889,103560.0,103550.0,0.1916709]
[1747138499798,0.22120889,103560.0,103550.0,0.1936021]
[1747138500010,0.22120889,103560.0,103550.0,0.3867455]
[1747138500242,0.22120889,103560.0,103550.0,0.39145325]
[1747138500486,0.23086447,103560.0,103550.0,0.6859334]
[1747138500730,0.2212088,103560.0,103550.0,0.67627651]
[1747138500946,0.2212088,103560.0,103550.0,0.56262409]
[1747138501826,0.00877196,103560.0,103550.0,0.56262409]
[1747138502053,0.00877196,103560.0,103550.0,1.03763739]
[1747138502054,0.04739502,103560.0,103550.0,1.03763739]
[1747138502270,0.23374781,103560.0,103550.0,1.03763758]
[1747138502676,0.23374781,103560.0,103550.0,1.04729419]
[1747138503132,0.22409242,103560.0,103550.0,1.00993758]
[1747138506159,0.22409242,103560.0,103550.0,0.98193758]
[1747138506762,0.22409242,103560.0,103550.0,0.99159409]
[1747138506968,0.22409242,103560.0,103550.0,1.04729409]
[1747138506969,0.02131106,103560.0,103550.0,1.04729409]
[1747138507167,0.02131106,103560.0,103550.0,1.48460349]
[1747138507444,0.01165558,103560.0,103550.0,1.58191289]
[1747138507643,0.02131135,103560.0,103550.0,1.27465449]
[1747138507845,0.02131135,103560.0,103550.0,1.46779789]
[1747138508287,0.01931135,103560.0,103550.0,1.46779789]
[1747138508449,0.02031135,103560.0,103550.0,1.46879789]
[1747138508659,0.02131135,103560.0,103550.0,1.46979789]
[1747138511242,0.02131144,103560.0,103550.0,1.48399247]
[1747138513690,0.02131135,103560.0,103550.0,1.48399247]
[1747138514324,0.03096721,103560.0,103550.0,1.48399247]
[1747138515623,0.02131135,103560.0,103550.0,1.48399247]
[1747138515821,0.33058686,103580.0,103570.0,0.21241643]
[1747138516035,0.33058686,103580.0,103570.0,0.72582913]
[1747138516246,0.33058686,103580.0,103570.0,0.73548415]
[1747138516465,0.33058686,103580.0,103570.0,0.74581497]
[1747138516688,0.32381581,103580.0,103570.0,0.74581497]
[1747138516904,0.29791581,103580.0,103570.0,0.84312437]
[1747138517276,0.27101581,103580.0,103570.0,0.84312437]
[1747138517528,0.25586829,103580.0,103570.0,1.23546935]
[1747138518274,0.25586829,103580.0,103570.0,1.13815995]
[1747138518491,0.25186829,103580.0,103570.0,1.13715995]
[1747138518721,0.24986829,103580.0,103570.0,1.13715995]
[1747138519079,0.25186829,103580.0,103570.0,1.13815995]
[1747138519864,0.25186829,103580.0,103570.0,1.14781506]
[1747138520038,0.19716829,103580.0,103570.0,1.25477948]
[1747138520458,0.19716829,103580.0,103570.0,1.23546935]
[1747138520608,0.25166829,103580.0,103570.0,1.23546935]
[1747138521017,0.25166829,103580.0,103570.0,1.13815995]
[1747138521479,0.25166829,103580.0,103570.0,1.14781497]
[1747138522366,0.25166829,103580.0,103570.0,1.13815995]
[1747138522596,0.25166829,103580.0,103570.0,1.14781516]
[1747138523433,0.25166829,103580.0,103570.0,1.13815995]
[1747138524133,0.25166829,103580.0,103570.0,1.24512446]
[1747138524351,0.19716829,103580.0,103570.0,1.24512446]
[1747138524809,0.19716829,103580.0,103570.0,1.23546935]
[1747138525241,0.19716829,103580.0,103570.0,0.93539854]
[1747138525449,0.25256829,103580.0,103570.0,0.93539854]
[1747138525792,0.25256829,103580.0,103570.0,1.13815995]
[1747138526653,0.25256829,103580.0,103570.0,1.14781516]
[1747138527271,0.20674183,103580.0,103570.0,1.15747027]
[1747138527492,0.21639592,103580.0,103570.0,1.1671251]
[1747138527894,0.21639592,103580.0,103570.0,1.24881998]
[1747138528103,0.21639592,103580.0,103570.0,1.1671251]
[1747138528514,0.21639592,103580.0,103570.0,1.17677984]
[1747138528714,0.01365353,103580.0,103570.0,1.17677919]
[1747138528910,0.03296125,103580.0,103570.0,1.17677919]
[1747138529116,0.03296115,103580.0,103570.0,1.17677919]
[1747138529875,0.04261533,103580.0,103570.0,1.30258859]
[1747138530109,0.04061533,103580.0,103570.0,1.30158859]
[1747138530323,0.03861533,103580.0,103570.0,1.30058859]
[1747138530538,0.03861533,103580.0,103570.0,1.30158859]
[1747138530720,0.03861533,103580.0,103570.0,1.30258859]
[1747138530961,0.00965353,103580.0,103570.0,1.42709799]
[1747138531160,0.03572313,103590.0,103580.0,0.22204964]
[1747138531343,0.03572313,103590.0,103580.0,0.90507122]
[1747138531575,0.03572313,103590.0,103580.0,0.94282176]
[1747138531785,0.02895891,103590.0,103580.0,1.34282176]
[1747138531992,0.01930566,103590.0,103580.0,1.44978506]
[1747138532199,0.03861206,103590.0,103580.0,1.42208506]
[1747138532421,0.03866045,103590.0,103580.0,1.2605712]
[1747138532827,0.03866036,103590.0,103580.0,1.2605712]
[1747138533032,0.0483137,103590.0,103580.0,1.2605712]
[1747138533238,0.02900711,103590.0,103580.0,1.2671526]
[1747138533435,0.01935405,103590.0,103580.0,1.42866646]
[1747138533719,0.01070108,103590.0,103580.0,1.46146646]
[1747138533923,0.01170108,103590.0,103580.0,1.59117586]
[1747138534133,0.02135396,103590.0,103580.0,1.59117586]
[1747138534345,0.03100692,103590.0,103580.0,1.59117586]
[1747138534911,0.03000692,103590.0,103580.0,1.58517586]
[1747138535115,0.02035386,103590.0,103580.0,1.58517586]
[1747138535318,0.02135386,103590.0,103580.0,1.59017586]
[1747138535520,0.0406599,103590.0,103580.0,1.56377586]
[1747138535725,0.05031315,103590.0,103580.0,1.2771526]
[1747138536538,0.05031296,103590.0,103580.0,1.43866646]
[1747138538477,0.05031287,103590.0,103580.0,1.43866646]
[1747138539538,0.05031287,103590.0,103580.0,1.2771526]
[1747138540547,0.05031287,103590.0,103580.0,1.374462]
[1747138542900,0.05031287,103590.0,103580.0,1.2771526]
[1747138544345,0.05031277,103590.0,103580.0,1.2771526]
[1747138544569,0.05031333,103590.0,103580.0,1.2771526]
[1747138545009,0.05031333,103590.0,103580.0,1.43866646]
[1747138546076,0.04066018,103590.0,103580.0,1.43866646]
[1747138546303,0.04066018,103590.0,103580.0,1.4716011]
[1747138549839,0.05031343,103590.0,103580.0,1.4716011]
[1747138550055,0.05031343,103590.0,103580.0,1.43866646]
[1747138551894,0.03100702,103590.0,103580.0,1.17252561]
[1747138552096,0.00204839,103590.0,103580.0,1.77832116]
[1747138552300,0.00204839,103590.0,103580.0,1.8025161]
[1747138552510,0.01170108,103590.0,103580.0,1.8025161]
[1747138552724,0.01170108,103590.0,103580.0,1.8998255]
[1747138553355,0.02135405,103590.0,103580.0,1.8998255]
[1747138553555,0.02135396,103590.0,103580.0,1.7491161]
[1747138554088,0.03100702,103590.0,103580.0,1.7491161]
[1747138557844,0.03100702,103590.0,103580.0,2.1614161]
[1747138558295,0.03100702,103590.0,103580.0,1.99990224]
[1747138558493,0.26972352,103590.0,103580.0,1.13468134]
[1747138558631,0.26972352,103590.0,103580.0,1.65494906]
[1747138558831,0.25041721,103590.0,103580.0,1.25494906]
[1747138559255,0.25041721,103590.0,103580.0,1.65494906]
[1747138559460,0.25041721,103590.0,103580.0,1.84803652]
[1747138559671,0.25041721,103590.0,103580.0,1.85769089]
[1747138560231,0.25041721,103590.0,103580.0,1.85645089]
[1747138561065,0.25041721,103590.0,103580.0,1.86610517]
[1747138561791,0.25041721,103590.0,103580.0,1.47166517]
[1747138561998,0.21442343,103590.0,103580.0,2.03727303]
[1747138562216,0.00204839,103590.0,103580.0,2.0614676]
[1747138562461,0.03100712,103590.0,103580.0,2.4014676]
[1747138562678,0.03100703,103590.0,103580.0,2.41302972]
[1747138562890,0.04066028,103590.0,103580.0,2.4014676]
[1747138563070,0.03100703,103590.0,103580.0,2.4014676]
[1747138563517,0.04066028,103590.0,103580.0,2.4014676]
[1747138563967,0.04066028,103590.0,103580.0,1.9891676]
[1747138565825,0.03100703,103590.0,103580.0,1.9891676]
[1747138566676,0.04066028,103590.0,103580.0,1.9891676]
[1747138566889,0.02135387,103590.0,103580.0,1.9891676]
[1747138567099,0.02135377,103590.0,103580.0,2.0163676]
[1747138567311,0.02135368,103590.0,103580.0,2.0163676]
[1747138567801,0.03100656,103590.0,103580.0,2.0163676]
[1747138568028,0.0936599,103590.0,103580.0,1.08356002]
[1747138568243,0.08400665,103590.0,103580.0,1.49726755]
[1747138568459,0.29638207,103590.0,103580.0,1.48761383]
[1747138568644,0.29638207,103590.0,103580.0,1.64912769]
[1747138569127,0.29638207,103590.0,103580.0,1.65878141]
[1747138569350,0.05031306,103590.0,103580.0,1.65878141]
[1747138569749,0.05031306,103590.0,103580.0,1.75609081]
[1747138570193,0.01170099,103590.0,103580.0,2.12329081]
[1747138570433,0.0406599,103590.0,103580.0,2.12329081]
[1747138570656,0.03100665,103590.0,103580.0,2.12329081]
[1747138570807,0.04065981,103590.0,103580.0,2.12329081]
[1747138571026,0.0406599,103590.0,103580.0,2.12329081]
[1747138571231,0.00414981,103590.0,103580.0,2.12329081]
[1747138571513,0.02895826,103590.0,103580.0,2.12329081]
[1747138571921,0.03861151,103590.0,103580.0,2.12329081]
[1747138572129,0.02895826,103590.0,103580.0,2.12329081]
[1747138572326,0.02895826,103590.0,103580.0,2.15039081]
[1747138572742,0.24785665,103610.0,103600.0,0.20270269]
[1747138572970,0.24062003,103610.0,103600.0,0.7001912]
[1747138573174,0.25027123,103610.0,103600.0,0.91394814]
[1747138573372,0.05723883,103610.0,103600.0,1.32359999]
[1747138574182,0.0567509,103620.0,103610.0,0.56198516]
[1747138574404,0.25941456,103620.0,103610.0,1.07963187]
[1747138574616,0.05675099,103620.0,103610.0,1.06998076]
[1747138574801,0.24976392,103620.0,103610.0,1.46998076]
[1747138574998,0.24976392,103620.0,103610.0,1.48432286]
[1747138575411,0.25076392,103620.0,103610.0,1.48832286]
[1747138575625,0.25076392,103620.0,103610.0,1.50209161]
[1747138576055,0.27766392,103620.0,103610.0,1.50509161]
[1747138576488,0.27766392,103620.0,103610.0,1.5050918]
[1747138576741,0.27766392,103620.0,103610.0,1.40383922]
[1747138576946,0.26801384,103620.0,103610.0,1.07349061]
[1747138578182,0.26801384,103620.0,103610.0,1.08431642]
[1747138580180,0.26801384,103620.0,103610.0,1.09396771]
[1747138581956,0.26801384,103620.0,103610.0,1.10361882]
[1747138582183,0.26801384,103620.0,103610.0,1.20092822]
[1747138582635,0.26701384,103620.0,103610.0,1.19692822]
[1747138582851,0.26701384,103620.0,103610.0,1.19392822]
[1747138583084,0.26801384,103620.0,103610.0,1.18827711]
[1747138583544,0.26801384,103620.0,103610.0,1.09096771]
[1747138583934,0.26801384,103620.0,103610.0,1.09296771]
[1747138584248,0.26801384,103620.0,103610.0,1.10061891]
[1747138584462,0.26801384,103620.0,103610.0,1.10261891]
[1747138584833,0.26701384,103620.0,103610.0,1.09861891]
[1747138585242,0.26701384,103620.0,103610.0,1.10161891]
[1747138585957,0.26701384,103620.0,103610.0,1.19892831]
[1747138586585,0.26701384,103620.0,103610.0,1.10161891]
[1747138587101,0.27666448,103620.0,103610.0,1.11127002]
[1747138587335,0.27666448,103620.0,103610.0,1.50550955]
[1747138588004,0.27666448,103620.0,103610.0,1.49585854]
[1747138590126,0.27666448,103620.0,103610.0,1.48620743]
[1747138590351,0.27666448,103620.0,103610.0,1.24891784]
[1747138590552,0.27666448,103620.0,103610.0,1.45160051]
[1747138592431,0.27666448,103620.0,103610.0,1.54890991]
[1747138592839,0.05675155,103620.0,103610.0,1.55856045]
[1747138593267,0.05675072,103620.0,103610.0,1.55856045]
[1747138593442,0.07605107,103620.0,103610.0,1.55856045]
[1747138593900,0.10195107,103620.0,103610.0,1.55856045]
[1747138594514,0.10195107,103620.0,103610.0,1.46125105]
[1747138595002,0.29496381,103620.0,103610.0,1.49585816]
[1747138595228,0.09230033,103620.0,103610.0,1.50550908]
[1747138595434,0.0192997,103620.0,103610.0,1.50550908]
[1747138595657,0.03860014,103620.0,103610.0,1.50550908]
[1747138595908,0.0192997,103620.0,103610.0,1.61735933]
[1747138596400,0.0256,103630.0,103620.0,0.22196374]
[1747138596644,0.04504362,103630.0,103620.0,0.80381472]
[1747138596883,0.05469296,103630.0,103620.0,0.82025]
[1747138597103,0.02909286,103630.0,103620.0,1.3175594]
[1747138597345,0.00979447,103630.0,103620.0,1.3175594]
[1747138597809,0.01944353,103630.0,103620.0,1.3175594]
[1747138598035,0.01944344,103630.0,103620.0,1.3175594]
[1747138598268,0.02909268,103630.0,103620.0,1.3175594]
[1747138598482,0.0001456,103630.0,103620.0,1.67210025]
[1747138598730,0.0001456,103630.0,103620.0,1.69700025]
[1747138598925,0.0001456,103630.0,103620.0,3.05538325]
[1747138599180,0.0001456,103630.0,103620.0,3.08018325]
[1747138599404,1e-08,103630.0,103620.0,3.08018325]
[1747138599654,1e-08,103630.0,103620.0,1.75730025]
[1747138599894,1e-08,103630.0,103620.0,1.75930025]
[1747138600072,1e-08,103630.0,103620.0,1.75730025]
[1747138600508,1e-08,103630.0,103620.0,1.76030025]
[1747138600735,1e-08,103630.0,103620.0,1.75830025]
[1747138601132,0.07019448,103650.0,103640.0,0.22192091]
[1747138601366,0.0447943,103650.0,103640.0,1.05373664]
[1747138601580,0.0447943,103650.0,103640.0,1.20342151]
[1747138601814,0.03514701,103650.0,103640.0,1.60342151]
[1747138602112,0.0544415,103650.0,103640.0,1.60342151]
[1747138602331,0.01929421,103650.0,103640.0,1.60342151]
[1747138602592,0.01929421,103650.0,103640.0,1.70073091]
[1747138602818,0.04489421,103650.0,103640.0,1.70073091]
[1747138603324,0.0106471,103650.0,103640.0,1.71527176]
[1747138603547,0.0352471,103650.0,103640.0,1.71527176]
[1747138603893,0.03524701,103650.0,103640.0,1.71527176]
[1747138604108,0.07259337,103660.0,103650.0,0.2218995]
[1747138604333,0.07259337,103660.0,103650.0,0.64223662]
[1747138604562,0.07259337,103660.0,103650.0,0.739546]
[1747138604563,0.07259282,103660.0,103650.0,0.739546]
[1747138604796,0.08223945,103660.0,103650.0,1.04223662]
[1747138605018,0.28482482,103660.0,103650.0,1.04794484]
[1747138605942,0.28482482,103660.0,103650.0,1.03829764]
[1747138606382,0.27517855,103660.0,103650.0,1.03829764]
[1747138607262,0.27517855,103660.0,103650.0,1.04794502]
[1747138608214,0.27517855,103660.0,103650.0,1.05867151]
[1747138608650,0.08223935,103660.0,103650.0,1.077966]
[1747138608854,0.03654608,103660.0,103650.0,1.077966]
[1747138609742,0.04619235,103660.0,103650.0,1.077966]
[1747138610191,0.0558388,103660.0,103650.0,1.077966]
[1747138610384,0.03654608,103660.0,103650.0,1.077966]
[1747138610593,0.04619244,103660.0,103650.0,1.077966]
[1747138611061,0.04619235,103660.0,103650.0,1.077966]
[1747138611271,0.0269,103660.0,103650.0,1.52981625]
[1747138611439,0.2821024,103670.0,103660.0,0.22187809]
[1747138611643,0.08932784,103670.0,103660.0,1.05237955]
[1747138612055,0.08932784,103670.0,103660.0,1.45237955]